fUST/lending_fUST_20250123
["ID","MTS","AMOUNT","RATE_DAILY","PERIOD"]
[350018956,1737570633808,-500.0,0.00019177,2]
[350018957,1737570633817,-500.0,0.00019177,2]
[350018958,1737570633827,-500.0,0.00019177,2]
[350018959,1737570633836,-500.0,0.00019177,2]
[350018960,1737570633847,-500.0,0.00019177,2]
[350018961,1737570633856,-500.0,0.00019177,2]
[350018962,1737570633866,-500.0,0.00019177,2]
[350018963,1737570633875,-500.0,0.00019177,2]
[350018964,1737570633885,-500.0,0.00019177,2]
[350018965,1737570633894,-500.0,0.00019177,2]
[350018966,1737570633903,-500.0,0.00019177,2]
[350018967,1737570633913,-500.0,0.00019177,2]
[350018968,1737570633922,-500.0,0.00019177,2]
[350018969,1737570633932,-500.0,0.00019177,2]
[350018970,1737570633941,-500.0,0.00019177,2]
[350018971,1737570633952,-500.0,0.00019177,2]
[350018972,1737570633962,-500.0,0.00019177,2]
[350018973,1737570633971,-500.0,0.00019177,2]
[350018974,1737570633981,-500.0,0.00019177,2]
[350018975,1737570633991,-500.0,0.00019177,2]
[350018976,1737570634001,-500.0,0.00019177,2]
[350018977,1737570634011,-500.0,0.00019177,2]
[350018978,1737570634021,-500.0,0.00019177,2]
[350018979,1737570634031,-650.0,0.00019177,2]
[350018980,1737570634040,-500.0,0.00019177,2]
[350018981,1737570634050,-500.0,0.00019177,2]
[350018982,1737570634060,-500.0,0.00019177,2]
[350018983,1737570634071,-500.0,0.00019177,2]
[350018984,1737570634080,-500.0,0.00019177,2]
[350018985,1737570634090,-500.0,0.00019177,2]
[350018986,1737570634099,-500.0,0.00019177,2]
[350018987,1737570634109,-500.0,0.00019177,2]
[350018988,1737570634118,-500.0,0.00019177,2]
[350018989,1737570634128,-600.0,0.00019177,2]
[350018990,1737570634137,-500.0,0.00019177,2]
[350018991,1737570634147,-500.0,0.00019177,2]
[350018992,1737570634156,-500.0,0.00019177,2]
[350018993,1737570634166,-500.0,0.00019177,2]
[350018994,1737570634175,-500.0,0.00019177,2]
[350018995,1737570634184,-835.68650182,0.00019178,5]
[350018996,1737570634193,-302.96598339,0.00019178,5]
[350018997,1737570634203,-609.66989567,0.00019178,2]
[350018998,1737570634212,-500.0,0.00019178,2]
[350018999,1737570634222,-500.0,0.00019178,2]
[350019000,1737570634231,-500.0,0.00019178,2]
[350019001,1737570634240,-500.0,0.00019178,2]
[350019002,1737570634250,-500.0,0.00019178,2]
[350019003,1737570634258,-500.0,0.00019178,2]
[350019004,1737570634268,-500.0,0.00019178,2]
[350019005,1737570634277,-500.0,0.00019178,2]
[350019006,1737570634287,-500.0,0.00019178,2]
[350019007,1737570634296,-534.71203296,0.00019178,2]
[350019008,1737570634306,-500.0,0.00019178,2]
[350019009,1737570634316,-500.0,0.00019178,2]
[350019010,1737570634326,-151.0,0.00019178,2]
[350019011,1737570634335,-500.0,0.00019178,2]
[350019012,1737570634347,-500.0,0.00019178,2]
[350019013,1737570634356,-739.65,0.00019178,2]
[350019014,1737570634366,-500.0,0.00019178,2]
[350019015,1737570634375,-500.0,0.00019178,2]
[350019016,1737570634385,-500.0,0.00019178,2]
[350019017,1737570634394,-500.0,0.00019178,2]
[350019018,1737570634403,-500.0,0.00019178,2]
[350019019,1737570634413,-500.0,0.00019178,2]
[350019020,1737570634422,-500.0,0.00019178,2]
[350019021,1737570634432,-500.0,0.00019178,2]
[350019022,1737570634442,-500.0,0.00019178,2]
[350019023,1737570634453,-500.0,0.00019178,2]
[350019024,1737570634463,-886.88,0.00019178,2]
[350019025,1737570634472,-500.0,0.00019178,2]
[350019026,1737570634482,-1063.53,0.00019178,2]
[350019027,1737570634492,-151.0,0.00019178,2]
[350019028,1737570634501,-500.0,0.00019178,2]
[350019029,1737570634510,-500.0,0.00019178,2]
[350019030,1737570634519,-534.39,0.00019178,2]
[350019031,1737570634528,-500.0,0.00019178,2]
[350019032,1737570634538,-500.0,0.00019178,2]
[350019033,1737570634547,-151.0,0.00019178,2]
[350019034,1737570634557,-500.0,0.00019178,2]
[350019035,1737570634566,-151.0,0.00019178,2]
[350019036,1737570634576,-907.28,0.00019178,2]
[350019037,1737570634585,-500.0,0.00019178,2]
[350019038,1737570634597,-855.22,0.00019178,2]
[350019039,1737570634607,-151.0,0.00019178,2]
[350019040,1737570634706,-1127.89,0.00019178,2]
[350019041,1737570634716,-500.0,0.00019178,2]
[350019042,1737570634727,-500.0,0.00019178,2]
[350019043,1737570634736,-500.0,0.00019178,2]
[350019044,1737570634746,-555.14437103,0.00019178,2]
[350019045,1737570634756,-151.0,0.00019178,2]
[350019046,1737570634766,-500.0,0.00019178,7]
[350019047,1737570634776,-151.0,0.00019178,2]
[350019048,1737570634785,-500.0,0.00019178,2]
[350019049,1737570634795,-151.0,0.00019178,2]
[350019050,1737570634804,-151.0,0.00019178,2]
[350019051,1737570634813,-520.53414045,0.00019178,2]
[350019052,1737570634822,-500.0,0.00019178,2]
[350019053,1737570634831,-500.0,0.00019178,2]
[350019054,1737570634841,-284.549241,0.00019178,2]
[350019055,1737570634850,-500.0,0.00019178,2]
[350019056,1737570634860,-284.549241,0.00019178,2]
[350019057,1737570634869,-500.0,0.00019178,2]
[350019058,1737570634878,-500.0,0.00019178,2]
[350019059,1737570634888,-500.0,0.00019178,2]
[350019060,1737570634897,-500.0,0.00019178,2]
[350019061,1737570634907,-500.0,0.00019178,2]
[350019062,1737570634916,-500.0,0.00019178,2]
[350019063,1737570634926,-500.0,0.00019178,2]
[350019064,1737570634936,-500.0,0.00019178,2]
[350019065,1737570634946,-810.64,0.00019178,2]
[350019066,1737570634957,-343.18082961,0.00019178,2]
[350019067,1737570634968,-500.0,0.00019178,2]
[350019068,1737570634980,-500.0,0.00019178,2]
[350019069,1737570634990,-642.12,0.00019178,2]
[350019070,1737570635000,-324.5353335,0.00019178,2]
[350019071,1737570635011,-500.0,0.00019178,2]
[350019072,1737570635021,-500.0,0.00019178,2]
[350019073,1737570635031,-500.0,0.00019178,2]
[350019074,1737570635042,-851.53,0.00019178,2]
[350019075,1737570635052,-500.0,0.00019178,2]
[350019076,1737570635062,-543.1,0.00019178,2]
[350019077,1737570635072,-151.0,0.00019178,2]
[350019078,1737570635082,-151.0,0.00019178,2]
[350019079,1737570635094,-500.0,0.00019178,2]
[350019080,1737570635104,-500.0,0.00019178,2]
[350019081,1737570635115,-500.0,0.00019178,2]
[350019082,1737570635126,-41984.76,0.00019178,2]
[350019083,1737570635137,-500.0,0.00019178,2]
[350019084,1737570635147,-500.0,0.00019178,2]
[350019085,1737570635157,-500.0,0.00019178,2]
[350019086,1737570635168,-999.73,0.00019178,2]
[350019087,1737570635178,-500.0,0.00019178,2]
[350019088,1737570635188,-1392.7,0.00019178,2]
[350019089,1737570635198,-500.0,0.00019178,2]
[350019090,1737570635207,-2758.21,0.00019178,2]
[350019091,1737570635217,-1183.25,0.00019178,2]
[350019092,1737570635226,-784.14,0.00019178,2]
[350019093,1737570635235,-1102.26,0.00019178,2]
[350019094,1737570635245,-1152.97,0.00019178,2]
[350019095,1737570635254,-669.86,0.00019178,2]
[350019096,1737570635264,-500.0,0.00019178,2]
[350019097,1737570635273,-500.0,0.00019178,2]
[350019098,1737570635283,-4333.64,0.00019178,2]
[350019099,1737570635292,-672.13,0.00019178,2]
[350019100,1737570635302,-500.0,0.00019178,2]
[350019101,1737570635311,-1279.17,0.00019178,2]
[350019102,1737570635321,-500.0,0.00019178,2]
[350019103,1737570635330,-500.0,0.00019178,2]
[350019104,1737570635341,-6881.5,0.00019178,2]
[350019105,1737570635351,-500.0,0.00019178,2]
[350019106,1737570635360,-500.0,0.00019178,2]
[350019107,1737570635369,-24604.29,0.00019178,2]
[350019108,1737570635378,-500.0,0.00019178,2]
[350019109,1737570635388,-12127.62,0.00019178,2]
[350019110,1737570635397,-500.0,0.00019178,2]
[350019111,1737570635407,-505.23,0.00019178,2]
[350019112,1737570635416,-259.422633,0.00019178,2]
[350019113,1737570635425,-259.422633,0.00019178,2]
[350019114,1737570635435,-259.422633,0.00019178,2]
[350019115,1737570635444,-259.422633,0.00019178,2]
[350019116,1737570635453,-196.20431437,0.00019178,2]
[350019117,1737570635463,-1144.67,0.00019178,2]
[350019118,1737570635472,-1282.25,0.00019178,2]
[350019119,1737570635481,-500.0,0.00019178,2]
[350019120,1737570635490,-3402.07,0.00019178,2]
[350019121,1737570635500,-500.0,0.00019178,2]
[350019122,1737570635509,-642.53,0.00019178,2]
[350019123,1737570635518,-500.0,0.00019178,2]
[350019124,1737570635527,-2356.85,0.00019178,2]
[350019125,1737570635536,-500.0,0.00019178,2]
[350019126,1737570635545,-2636.99,0.00019178,2]
[350019127,1737570635555,-795.33,0.00019178,2]
[350019128,1737570635564,-1380.43,0.00019178,2]
[350019129,1737570635573,-517.8,0.00019178,2]
[350019130,1737570635582,-247.78879676,0.00019178,2]
[350019131,1737570635594,-500.0,0.00019178,2]
[350019132,1737570635603,-1183.94,0.00019178,2]
[350019133,1737570635612,-151.0,0.00019178,2]
[350019134,1737570635622,-254.5478698,0.00019178,2]
[350019135,1737570635634,-612.56,0.00019178,2]
[350019136,1737570635644,-1187.94,0.00019178,2]
[350019137,1737570635654,-500.0,0.00019178,2]
[350019138,1737570635664,-608.0,0.00019178,2]
[350019139,1737570635674,-913.27,0.00019178,2]
[350019140,1737570635684,-500.0,0.00019178,2]
[350019141,1737570635696,-1996.08,0.00019178,2]
[350019142,1737570635706,-500.0,0.00019178,2]
[350019143,1737570635716,-500.0,0.00019178,2]
[350019144,1737570635728,-500.0,0.00019178,2]
[350019145,1737570635738,-500.0,0.00019178,2]
[350019146,1737570635748,-347.08,0.00019178,2]
[350019147,1737570635758,-1405.0,0.00019178,2]
[350019148,1737570635768,-2466.55,0.00019178,2]
[350019149,1737570635778,-2227.78,0.00019178,2]
[350019150,1737570635788,-500.0,0.00019178,2]
[350019151,1737570635797,-937.31,0.00019178,2]
[350019152,1737570635807,-1650.73,0.00019178,2]
[350019153,1737570635816,-9397.98,0.00019178,2]
[350019154,1737570635826,-420.64325676,0.00019178,2]
[350019155,1737570635842,-1569.96674324,0.00019178,2]
[350019156,1737570635851,-500.0,0.00019178,2]
[350019157,1737570635861,-500.0,0.00019178,2]
[350019158,1737570635870,-171.611024,0.00019178,2]
[350019159,1737570635879,-178.96850414,0.00019181,2]
[350019160,1737570635889,-302.90913937,0.0001919,2]
[350019161,1737570635898,-302.8788636,0.0001919,2]
[350019162,1737570635907,-178.96850414,0.00019215,2]
[350019163,1737570635916,-751.4518638,0.00019216,2]
[350019164,1737570635926,-231.1235789,0.00019257,2]
[350019165,1737570635935,-151.0,0.00019313,2]
[350019166,1737570635944,-151.0,0.00019313,2]
[350019167,1737570635953,-162.735922,0.00019313,2]
[350019168,1737570635963,-151.0,0.00019313,2]
[350019169,1737570635972,-151.0,0.00019313,2]
[350019170,1737570635982,-284.549241,0.00019313,2]
[350019171,1737570635991,-284.549241,0.00019313,2]
[350019172,1737570636001,-343.75385456,0.00019314,2]
[350019173,1737570636010,-500.0,0.00019315,3]
[350019174,1737570636019,-151.0,0.00019315,2]
[350019175,1737570636029,-151.0,0.00019315,2]
[350019176,1737570636038,-151.0,0.00019315,2]
[350019177,1737570636048,-151.0,0.00019315,2]
[350019178,1737570636057,-151.0,0.00019315,2]
[350019179,1737570636067,-197.321443,0.00019315,2]
[350019180,1737570636077,-500.0,0.00019315,3]
[350019181,1737570636086,-151.0,0.00019315,2]
[350019182,1737570636097,-151.0,0.00019315,2]
[350019183,1737570636107,-151.0,0.00019315,2]
[350019184,1737570636116,-500.0,0.00019315,3]
[350019185,1737570636126,-739.65,0.00019315,3]
[350019186,1737570636135,-336.15951793,0.00019315,3]
[350019187,1737570636144,-500.0,0.00019315,3]
[350019188,1737570636154,-500.0,0.00019315,3]
[350019189,1737570636163,-500.0,0.00019315,3]
[350019190,1737570636173,-500.0,0.00019315,3]
[350019191,1737570636182,-886.88,0.00019315,3]
[350019192,1737570636191,-500.0,0.00019315,3]
[350019193,1737570636200,-1063.53,0.00019315,3]
[350019194,1737570636210,-534.39,0.00019315,3]
[350019195,1737570636219,-500.0,0.00019315,3]
[350019196,1737570636228,-500.0,0.00019315,3]
[350019197,1737570636238,-151.0,0.00019315,2]
[350019198,1737570636247,-500.0,0.00019315,3]
[350019199,1737570636257,-151.0,0.00019315,2]
[350019200,1737570636266,-151.0,0.00019315,2]
[350019201,1737570636275,-237.076111,0.00019315,2]
[350019202,1737570636285,-907.28,0.00019315,3]
[350019203,1737570636294,-500.0,0.00019315,3]
[350019204,1737570636303,-855.22,0.00019315,3]
[350019205,1737570636313,-151.0,0.00019315,2]
[350019206,1737570636322,-151.0,0.00019315,2]
[350019207,1737570636331,-173.830368,0.00019315,2]
[350019208,1737570636340,-1127.89,0.00019315,3]
[350019209,1737570636350,-500.0,0.00019315,3]
[350019210,1737570636359,-500.0,0.00019315,3]
[350019211,1737570636369,-500.0,0.00019315,3]
[350019212,1737570636379,-151.0,0.00019315,2]
[350019213,1737570636387,-151.0,0.00019315,2]
[350019214,1737570636397,-151.0,0.00019315,2]
[350019215,1737570636406,-151.0,0.00019315,2]
[350019216,1737570636415,-500.0,0.00019315,3]
[350019217,1737570636424,-151.0,0.00019315,2]
[350019218,1737570636433,-151.0,0.00019315,2]
[350019219,1737570636442,-151.0,0.00019315,2]
[350019220,1737570636451,-151.0,0.00019315,2]
[350019221,1737570636460,-151.0,0.00019315,2]
[350019222,1737570636470,-151.0,0.00019315,2]
[350019223,1737570636480,-284.549241,0.00019315,2]
[350019224,1737570636489,-500.0,0.00019315,3]
[350019225,1737570636499,-284.549241,0.00019315,2]
[350019226,1737570636508,-284.549241,0.00019315,2]
[350019227,1737570636518,-500.0,0.00019315,3]
[350019228,1737570636527,-284.549241,0.00019315,2]
[350019229,1737570636536,-500.0,0.00019315,3]
[350019230,1737570636546,-500.0,0.00019315,3]
[350019231,1737570636555,-500.0,0.00019315,3]
[350019232,1737570636564,-500.0,0.00019315,3]
[350019233,1737570636573,-500.0,0.00019315,3]
[350019234,1737570636583,-147.52572852,0.00019315,3]
[350019235,1737570636596,-663.11427148,0.00019315,3]
[350019236,1737570636605,-301.40411846,0.00019315,3]
[350019237,1737570636617,-198.59588154,0.00019315,3]
[350019238,1737570636626,-240.96911846,0.00019315,3]
[350019239,1737570636639,-309.7139885,0.00019315,3]
[350019240,1737570636650,-91.43689304,0.00019315,3]
[350019241,1737570636660,-500.0,0.00019315,3]
[350019242,1737570636669,-500.0,0.00019315,3]
[350019243,1737570636680,-851.53,0.00019315,3]
[350019244,1737570636691,-482.38101591,0.00019315,3]
[350019245,1737570636700,-543.1,0.00019315,3]
[350019246,1737570636709,-151.0,0.00019315,2]
[350019247,1737570636719,-151.0,0.00019315,2]
[350019248,1737570636729,-151.0,0.00019315,2]
[350019249,1737570636738,-151.0,0.00019315,2]
[350019250,1737570636747,-190.851808,0.00019315,2]
[350019251,1737570636757,-500.0,0.00019315,3]
[350019252,1737570636766,-500.0,0.00019315,3]
[350019253,1737570636775,-13522.18920667,0.00019315,3]
[350019265,1737570638502,-958.08,0.00019178,2]
[350019266,1737570638511,-500.0,0.00019315,3]
[350019267,1737570638521,-500.0,0.00019315,3]
[350019268,1737570638530,-1392.7,0.00019315,3]
[350019269,1737570638539,-107.84459551,0.00019315,3]
[350019270,1737570638612,-707.59321876,0.00019315,3]
[350019271,1737570638624,-1942.77218573,0.00019315,3]
[350019272,1737570638634,-843.82679402,0.00019315,2]
[350019273,1737570638646,-339.42320598,0.00019315,2]
[350019274,1737570638655,-160.57679402,0.00019315,3]
[350019275,1737570638667,-446.20833079,0.00019315,3]
[350019276,1737570638680,-177.35487519,0.00019315,3]
[350019278,1737570638689,-1102.26,0.00019315,3]
[350019279,1737570638701,-478.80444859,0.00019315,3]
[350019293,1737570640691,-500.0,0.00019178,2]
[350019294,1737570640704,-674.16555141,0.00019315,3]
[350019296,1737570640713,-669.86,0.00019315,3]
[350019297,1737570640722,-500.0,0.00019315,3]
[350019298,1737570640731,-4333.64,0.00019315,3]
[350019299,1737570640742,-672.13,0.00019315,3]
[350019300,1737570640751,-500.0,0.00019315,3]
[350019301,1737570640760,-1279.17,0.00019315,3]
[350019302,1737570640770,-500.0,0.00019315,3]
[350019303,1737570640779,-500.0,0.00019315,2]
[350019304,1737570640789,-6881.5,0.00019315,3]
[350019305,1737570640799,-500.0,0.00019315,3]
[350019306,1737570640808,-24604.29,0.00019315,3]
[350019307,1737570640817,-500.0,0.00019315,3]
[350019308,1737570640826,-12127.62,0.00019315,3]
[350019309,1737570640836,-500.0,0.00019315,3]
[350019310,1737570640847,-505.23,0.00019315,3]
[350019311,1737570640856,-259.422633,0.00019315,2]
[350019312,1737570640867,-259.422633,0.00019315,2]
[350019313,1737570640876,-259.422633,0.00019315,2]
[350019314,1737570640885,-259.422633,0.00019315,2]
[350019315,1737570640894,-259.422633,0.00019315,2]
[350019316,1737570640903,-259.422633,0.00019315,2]
[350019317,1737570640913,-1144.67,0.00019315,3]
[350019318,1737570640923,-1282.25,0.00019315,3]
[350019319,1737570640932,-500.0,0.00019315,3]
[350019320,1737570640942,-3402.07,0.00019315,3]
[350019321,1737570640951,-500.0,0.00019315,3]
[350019322,1737570640961,-642.53,0.00019315,3]
[350019323,1737570640970,-500.0,0.00019315,3]
[350019324,1737570640980,-2356.85,0.00019315,3]
[350019325,1737570640990,-500.0,0.00019315,3]
[350019326,1737570640999,-2636.99,0.00019315,3]
[350019327,1737570641008,-795.33,0.00019315,3]
[350019328,1737570641018,-1380.43,0.00019315,3]
[350019329,1737570641027,-517.8,0.00019315,3]
[350019330,1737570641036,-476.61703313,0.00019315,3]
[350019331,1737570641046,-1183.94,0.00019315,3]
[350019332,1737570641056,-151.0,0.00019315,2]
[350019333,1737570641066,-261.191337,0.00019315,2]
[350019334,1737570641076,-612.56,0.00019315,3]
[350019335,1737570641085,-1187.94,0.00019315,3]
[350019336,1737570641096,-500.0,0.00019315,3]
[350019337,1737570641106,-608.0,0.00019315,3]
[350019338,1737570641115,-852.88670757,0.00019315,3]
[350019339,1737570641127,-60.38329243,0.00019315,3]
[350019340,1737570641136,-500.0,0.00019315,3]
[350019341,1737570641146,-839.8503165,0.00019315,3]
[350019357,1737570643801,-1156.2296835,0.00019315,3]
[350019358,1737570643812,-500.0,0.00019315,3]
[350019359,1737570643822,-1405.0,0.00019315,3]
[350019360,1737570643832,-218.7703165,0.00019315,3]
[350019361,1737570643845,-2247.7796835,0.00019315,3]
[350019362,1737570643856,-2227.78,0.00019315,3]
[350019363,1737570643866,-500.0,0.00019315,3]
[350019364,1737570643876,-937.31,0.00019315,3]
[350019365,1737570643886,-1650.73,0.00019315,3]
[350019366,1737570643896,-9397.98,0.00019315,3]
[350019367,1737570643906,-1990.61,0.00019315,3]
[350019368,1737570643915,-500.0,0.00019315,3]
[350019369,1737570643926,-500.0,0.00019315,3]
[350019370,1737570643935,-958.08,0.00019315,3]
[350019371,1737570643945,-580.07174279,0.00019315,3]
[350019372,1737570643955,-530.5795608,0.00019334,2]
[350019373,1737570643965,-302.90913937,0.0001938,2]
[350019374,1737570643975,-302.8788636,0.0001938,2]
[350019375,1737570643984,-517.89358621,0.00019422,2]
[350019376,1737570643994,-151.0,0.00019451,2]
[350019377,1737570644005,-500.0,0.00019452,3]
[350019378,1737570644015,-151.0,0.00019452,2]
[350019379,1737570644025,-151.0,0.00019452,2]
[350019380,1737570644035,-151.0,0.00019452,2]
[350019381,1737570644044,-500.0,0.00019452,3]
[350019382,1737570644054,-151.0,0.00019452,2]
[350019383,1737570644063,-151.0,0.00019452,2]
[350019384,1737570644073,-151.0,0.00019452,2]
[350019385,1737570644083,-500.0,0.00019452,3]
[350019386,1737570644092,-739.65,0.00019452,3]
[350019387,1737570644103,-500.0,0.00019452,3]
[350019388,1737570644112,-500.0,0.00019452,3]
[350019389,1737570644121,-500.0,0.00019452,3]
[350019390,1737570644131,-886.88,0.00019452,3]
[350019391,1737570644140,-500.0,0.00019452,3]
[350019392,1737570644149,-1063.53,0.00019452,3]
[350019393,1737570644159,-534.39,0.00019452,3]
[350019394,1737570644168,-500.0,0.00019452,3]
[350019395,1737570644178,-500.0,0.00019452,3]
[350019396,1737570644187,-500.0,0.00019452,3]
[350019397,1737570644197,-151.0,0.00019452,2]
[350019398,1737570644207,-151.0,0.00019452,2]
[350019399,1737570644216,-151.0,0.00019452,2]
[350019400,1737570644226,-907.28,0.00019452,3]
[350019401,1737570644236,-500.0,0.00019452,3]
[350019402,1737570644245,-855.22,0.00019452,3]
[350019403,1737570644255,-1127.89,0.00019452,3]
[350019404,1737570644264,-500.0,0.00019452,3]
[350019405,1737570644274,-500.0,0.00019452,3]
[350019406,1737570644401,-500.0,0.00019452,3]
[350019407,1737570644410,-151.0,0.00019452,2]
[350019408,1737570644419,-151.0,0.00019452,2]
[350019409,1737570644429,-151.0,0.00019452,2]
[350019410,1737570644439,-500.0,0.00019452,3]
[350019411,1737570644448,-151.0,0.00019452,2]
[350019412,1737570644457,-151.0,0.00019452,2]
[350019413,1737570644467,-151.0,0.00019452,2]
[350019414,1737570644476,-151.0,0.00019452,2]
[350019415,1737570644485,-151.0,0.00019452,2]
[350019416,1737570644495,-151.0,0.00019452,2]
[350019417,1737570644504,-151.0,0.00019452,2]
[350019418,1737570644514,-151.0,0.00019452,2]
[350019419,1737570644524,-288.326338,0.00019452,2]
[350019420,1737570644534,-500.0,0.00019452,3]
[350019421,1737570644543,-284.549241,0.00019452,2]
[350019422,1737570644553,-284.549241,0.00019452,2]
[350019423,1737570644562,-284.549241,0.00019452,2]
[350019424,1737570644571,-500.0,0.00019452,3]
[350019425,1737570644581,-284.549241,0.00019452,2]
[350019426,1737570644590,-284.549241,0.00019452,2]
[350019427,1737570644601,-284.549241,0.00019452,2]
[350019428,1737570644611,-500.0,0.00019452,3]
[350019429,1737570644620,-500.0,0.00019452,3]
[350019430,1737570644629,-500.0,0.00019452,3]
[350019431,1737570644638,-500.0,0.00019452,3]
[350019432,1737570644648,-500.0,0.00019452,3]
[350019433,1737570644657,-810.64,0.00019452,3]
[350019434,1737570644666,-500.0,0.00019452,3]
[350019435,1737570644676,-642.12,0.00019452,3]
[350019436,1737570644687,-500.0,0.00019452,3]
[350019437,1737570644698,-500.0,0.00019452,3]
[350019438,1737570644707,-851.53,0.00019452,3]
[350019439,1737570644716,-543.1,0.00019452,3]
[350019440,1737570644727,-151.0,0.00019452,2]
[350019441,1737570644737,-151.0,0.00019452,2]
[350019442,1737570644747,-151.0,0.00019452,2]
[350019443,1737570644756,-500.0,0.00019452,3]
[350019444,1737570644768,-500.0,0.00019452,3]
[350019445,1737570644777,-464.84860677,0.00019452,3]
[350019446,1737570644787,-2758.21,0.00019452,3]
[350019447,1737570644796,-1183.25,0.00019452,2]
[350019448,1737570644805,-784.14,0.00019452,3]
[350019449,1737570644815,-1102.26,0.00019452,3]
[350019450,1737570644824,-1152.97,0.00019452,3]
[350019451,1737570644833,-669.86,0.00019452,3]
[350019452,1737570644843,-500.0,0.00019452,3]
[350019453,1737570644852,-4333.64,0.00019452,3]
[350019454,1737570644862,-672.13,0.00019452,3]
[350019455,1737570644871,-500.0,0.00019452,3]
[350019456,1737570644880,-1279.17,0.00019452,3]
[350019457,1737570644890,-500.0,0.00019452,3]
[350019458,1737570644899,-500.0,0.00019452,2]
[350019459,1737570644909,-6881.5,0.00019452,3]
[350019460,1737570644918,-306.60071304,0.00019452,3]
[350019461,1737570644927,-24604.29,0.00019452,3]
[350019462,1737570644937,-500.0,0.00019452,3]
[350019463,1737570644948,-12127.62,0.00019452,3]
[350019464,1737570644958,-500.0,0.00019452,3]
[350019465,1737570644967,-505.23,0.00019452,3]
[350019466,1737570644976,-259.422633,0.00019452,2]
[350019467,1737570644986,-259.422633,0.00019452,2]
[350019468,1737570644995,-259.422633,0.00019452,2]
[350019469,1737570645004,-259.422633,0.00019452,2]
[350019470,1737570645014,-259.422633,0.00019452,2]
[350019471,1737570645024,-259.422633,0.00019452,2]
[350019472,1737570645033,-1144.67,0.00019452,3]
[350019473,1737570645043,-1282.25,0.00019452,3]
[350019474,1737570645052,-500.0,0.00019452,3]
[350019475,1737570645062,-3402.07,0.00019452,3]
[350019476,1737570645071,-500.0,0.00019452,3]
[350019477,1737570645080,-642.53,0.00019452,3]
[350019478,1737570645090,-500.0,0.00019452,3]
[350019479,1737570645099,-2356.85,0.00019452,3]
[350019480,1737570645110,-500.0,0.00019452,3]
[350019481,1737570645119,-2636.99,0.00019452,3]
[350019482,1737570645131,-795.33,0.00019452,3]
[350019483,1737570645141,-1380.43,0.00019452,3]
[350019484,1737570645150,-517.8,0.00019452,3]
[350019485,1737570645160,-1183.94,0.00019452,3]
[350019486,1737570645169,-612.56,0.00019452,3]
[350019487,1737570645179,-1187.94,0.00019452,3]
[350019488,1737570645189,-413.29409971,0.00019452,3]
[350019489,1737570645198,-608.0,0.00019452,3]
[350019490,1737570645208,-913.27,0.00019452,3]
[350019491,1737570645217,-500.0,0.00019452,3]
[350019492,1737570645227,-1996.08,0.00019452,3]
[350019493,1737570645237,-500.0,0.00019452,3]
[350019494,1737570645251,-1405.0,0.00019452,3]
[350019495,1737570645262,-2466.55,0.00019452,3]
[350019496,1737570645273,-2227.78,0.00019452,3]